[Event "Titled Tuesday Blitz April 4 Late 2023"]
[White "Sieciechowicz, Marcin"]
[Black "Kielinkei"]
[WhiteFideId "1130170"]
[WhiteElo "2302"]
[BlackElo "2422"]
[Result "1-0"]
[Round "04"]
[TimeControl "180+2"]
[Date "2023.04.04"]
[WhiteClock "0:00:04"]
[BlackClock "0:00:02"]

1. d4 {[%clk 0:02:19]}  Nf6 {[%clk 0:02:58]} 2. c4 {[%clk 0:02:19]}  e6 {[%clk 0:02:56]} 3. Nc3 {[%clk 0:02:20]}  Bb4 {[%clk 0:02:57]} 4. Qc2 {[%clk 0:02:20]}  b6 {[%clk 0:02:52]} 5. e4 {[%clk 0:02:18]}  d6 {[%clk 0:02:44]} 6. Bd3 {[%clk 0:02:13]}  Bxc3+ {[%clk 0:02:38]} 7. Qxc3 {[%clk 0:02:11]}  O-O {[%clk 0:02:36]} 8. Nf3 {[%clk 0:02:09]}  c5 {[%clk 0:02:35]} 9. d5 {[%clk 0:01:57]}  e5 {[%clk 0:02:34]} 10. Bg5 {[%clk 0:01:55]}  h6 {[%clk 0:02:33]} 11. Bh4 {[%clk 0:01:52]}  Bg4 {[%clk 0:02:25]} 12. Nd2 {[%clk 0:01:51]}  Nbd7 {[%clk 0:02:20]} 13. f3 {[%clk 0:01:51]}  Bh5 {[%clk 0:02:19]} 14. g4 {[%clk 0:01:49]}  Bg6 {[%clk 0:02:19]} 15. Bf2 {[%clk 0:01:44]}  h5 {[%clk 0:02:03]} 16. h3 {[%clk 0:01:39]}  Nh7 {[%clk 0:02:00]} 17. h4 {[%clk 0:01:33]}  a6 {[%clk 0:01:42]} 18. Nf1 {[%clk 0:01:27]}  Nhf6 {[%clk 0:01:33]} 19. Ne3 {[%clk 0:01:19]}  hxg4 {[%clk 0:01:31]} 20. Nxg4 {[%clk 0:00:48]}  Nxg4 {[%clk 0:01:24]} 21. fxg4 {[%clk 0:00:49]}  Nf6 {[%clk 0:01:24]} 22. h5 {[%clk 0:00:40]}  Bxe4 {[%clk 0:01:19]} 23. Rg1 {[%clk 0:00:40]}  Bxd3 {[%clk 0:01:14]} 24. Qxd3 {[%clk 0:00:41]}  e4 {[%clk 0:01:11]} 25. Qc3 {[%clk 0:00:35]}  Nh7 {[%clk 0:01:00]} 26. O-O-O {[%clk 0:00:31]}  Qf6 {[%clk 0:00:56]} 27. Qc2 {[%clk 0:00:28]}  Ng5 {[%clk 0:00:50]} 28. Be3 {[%clk 0:00:20]}  b5 {[%clk 0:00:36]} 29. h6 {[%clk 0:00:10]}  bxc4 {[%clk 0:00:27]} 30. hxg7 {[%clk 0:00:09]}  Qxg7 {[%clk 0:00:26]} 31. Rh1 {[%clk 0:00:09]}  f6 {[%clk 0:00:20]} 32. Rh5 {[%clk 0:00:09]}  Rae8 {[%clk 0:00:13]} 33. Rdh1 {[%clk 0:00:09]}  Kf7 {[%clk 0:00:13]} 34. Bxg5 {[%clk 0:00:09]}  Rh8 {[%clk 0:00:12]} 35. Be3 {[%clk 0:00:03]}  Rxh5 {[%clk 0:00:11]} 36. gxh5 {[%clk 0:00:04]}  f5 {[%clk 0:00:08]} 37. h6 {[%clk 0:00:05]}  Qh7 {[%clk 0:00:07]} 38. Qc3 {[%clk 0:00:04]}  Rg8 {[%clk 0:00:07]} 39. Qxc4 {[%clk 0:00:04]}  Rg3 {[%clk 0:00:07]} 40. Bf4 {[%clk 0:00:04]}  Rf3 {[%clk 0:00:07]} 41. Bxd6 {[%clk 0:00:04]}  f4 {[%clk 0:00:06]} 42. Bxc5 {[%clk 0:00:04]}  e3 {[%clk 0:00:06]} 43. d6+ {[%clk 0:00:05]}  Ke8 {[%clk 0:00:03]} 44. Qe6+ {[%clk 0:00:04]}  Kf8 {[%clk 0:00:02]} 45. d7+ {[%clk 0:00:04]} 1-0


[Site "https://www.chess.com"]

[Event "Titled Tuesday Blitz April 4 Late 2023"]
[White "Poliakova, Varvara"]
[Black "Celestino, Rafael Teixeira"]
[WhiteFideId "13518313"]
[BlackFideId "2108925"]
[WhiteElo "2075"]
[BlackElo "2415"]
[Result "1-0"]
[Round "04"]
[TimeControl "180+2"]
[Date "2023.04.04"]
[WhiteClock "0:00:54"]
[BlackClock "0:00:06"]

1. e4 {[%clk 0:03:00]}  e5 {[%clk 0:02:59]} 2. Nf3 {[%clk 0:03:00]}  Nc6 {[%clk 0:02:54]} 3. Bc4 {[%clk 0:02:58]}  Bc5 {[%clk 0:02:54]} 4. d3 {[%clk 0:02:57]}  d6 {[%clk 0:02:54]} 5. c3 {[%clk 0:02:57]}  Nf6 {[%clk 0:02:54]} 6. Bb3 {[%clk 0:02:57]}  Bg4 {[%clk 0:02:54]} 7. Nbd2 {[%clk 0:02:57]}  Qd7 {[%clk 0:02:52]} 8. h3 {[%clk 0:02:57]}  Be6 {[%clk 0:02:51]} 9. Nf1 {[%clk 0:02:55]}  d5 {[%clk 0:02:51]} 10. Qe2 {[%clk 0:02:54]}  a5 {[%clk 0:02:50]} 11. Ng3 {[%clk 0:02:51]}  dxe4 {[%clk 0:02:17]} 12. dxe4 {[%clk 0:02:52]}  a4 {[%clk 0:02:14]} 13. Bc2 {[%clk 0:02:51]}  Na5 {[%clk 0:02:11]} 14. Nxe5 {[%clk 0:02:49]}  Qe7 {[%clk 0:02:07]} 15. Bf4 {[%clk 0:02:45]}  O-O {[%clk 0:02:02]} 16. O-O {[%clk 0:02:30]}  Bd6 {[%clk 0:01:55]} 17. Nd3 {[%clk 0:02:25]}  Bc4 {[%clk 0:01:50]} 18. Bxd6 {[%clk 0:02:21]}  cxd6 {[%clk 0:01:42]} 19. Qe3 {[%clk 0:02:17]}  b5 {[%clk 0:01:31]} 20. Rfe1 {[%clk 0:02:15]}  Rac8 {[%clk 0:01:27]} 21. Nf5 {[%clk 0:02:15]}  Qd7 {[%clk 0:01:19]} 22. Qg5 {[%clk 0:02:14]}  Ne8 {[%clk 0:01:19]} 23. Ne7+ {[%clk 0:02:09]}  Kh8 {[%clk 0:01:16]} 24. Nxc8 {[%clk 0:02:10]}  Qxc8 {[%clk 0:01:16]} 25. Rad1 {[%clk 0:02:08]}  h6 {[%clk 0:00:57]} 26. Qg4 {[%clk 0:02:06]}  Qc6 {[%clk 0:00:50]} 27. Nb4 {[%clk 0:01:59]}  Qc5 {[%clk 0:00:48]} 28. Nd5 {[%clk 0:01:57]}  Nc6 {[%clk 0:00:44]} 29. Re3 {[%clk 0:01:52]}  Ne5 {[%clk 0:00:44]} 30. Qh5 {[%clk 0:01:45]}  Bxd5 {[%clk 0:00:38]} 31. Rxd5 {[%clk 0:01:43]}  Qc7 {[%clk 0:00:36]} 32. Rd1 {[%clk 0:01:38]}  Nf6 {[%clk 0:00:35]} 33. Qe2 {[%clk 0:01:37]}  Ng6 {[%clk 0:00:29]} 34. g3 {[%clk 0:01:36]}  Re8 {[%clk 0:00:25]} 35. f4 {[%clk 0:01:36]}  Qc5 {[%clk 0:00:25]} 36. Kg2 {[%clk 0:01:33]}  Kg8 {[%clk 0:00:18]} 37. Qf3 {[%clk 0:01:26]}  b4 {[%clk 0:00:16]} 38. Rd4 {[%clk 0:01:23]}  bxc3 {[%clk 0:00:12]} 39. bxc3 {[%clk 0:01:24]}  a3 {[%clk 0:00:11]} 40. Re2 {[%clk 0:01:24]}  Rb8 {[%clk 0:00:11]} 41. Rdd2 {[%clk 0:01:19]}  Rb2 {[%clk 0:00:11]} 42. e5 {[%clk 0:01:18]}  dxe5 {[%clk 0:00:10]} 43. Bxg6 {[%clk 0:01:18]}  Rxd2 {[%clk 0:00:09]} 44. Bxf7+ {[%clk 0:01:18]}  Kxf7 {[%clk 0:00:10]} 45. Rxd2 {[%clk 0:01:19]}  e4 {[%clk 0:00:10]} 46. Qe2 {[%clk 0:01:10]}  Qxc3 {[%clk 0:00:10]} 47. Rc2 {[%clk 0:01:07]}  Qd4 {[%clk 0:00:07]} 48. Qc4+ {[%clk 0:01:07]}  Qxc4 {[%clk 0:00:06]} 49. Rxc4 {[%clk 0:01:08]}  Ke7 {[%clk 0:00:07]} 50. Kf2 {[%clk 0:01:08]}  Kd6 {[%clk 0:00:07]} 51. Rd4+ {[%clk 0:01:06]}  Kc5 {[%clk 0:00:08]} 52. Rd8 {[%clk 0:01:06]}  Kc4 {[%clk 0:00:07]} 53. Ra8 {[%clk 0:01:01]}  Kb4 {[%clk 0:00:08]} 54. Ke3 {[%clk 0:00:57]}  Nd5+ {[%clk 0:00:08]} 55. Kd4 {[%clk 0:00:57]}  Nc3 {[%clk 0:00:07]} 56. Rb8+ {[%clk 0:00:57]}  Nb5+ {[%clk 0:00:05]} 57. Kxe4 {[%clk 0:00:57]}  Kc4 {[%clk 0:00:06]} 58. Rxb5 {[%clk 0:00:49]}  Kxb5 {[%clk 0:00:07]} 59. Kd5 {[%clk 0:00:49]}  Kb4 {[%clk 0:00:07]} 60. Kd4 {[%clk 0:00:49]}  Kb5 {[%clk 0:00:04]} 61. Kc3 {[%clk 0:00:49]}  Ka4 {[%clk 0:00:04]} 62. Kc4 {[%clk 0:00:50]}  g6 {[%clk 0:00:04]} 63. g4 {[%clk 0:00:50]}  h5 {[%clk 0:00:03]} 64. f5 {[%clk 0:00:50]}  gxf5 {[%clk 0:00:01]} 65. gxf5 {[%clk 0:00:50]}  h4 {[%clk 0:00:02]} 66. f6 {[%clk 0:00:50]}  Ka5 {[%clk 0:00:02]} 67. f7 {[%clk 0:00:51]}  Kb6 {[%clk 0:00:03]} 68. f8=Q {[%clk 0:00:51]}  Kc6 {[%clk 0:00:04]} 69. Qxa3 {[%clk 0:00:51]}  Kd7 {[%clk 0:00:05]} 70. Qd3+ {[%clk 0:00:51]}  Ke6 {[%clk 0:00:06]} 71. Qd5+ {[%clk 0:00:52]}  Kf6 {[%clk 0:00:06]} 72. a4 {[%clk 0:00:52]}  Kg6 {[%clk 0:00:07]} 73. a5 {[%clk 0:00:53]}  Kf6 {[%clk 0:00:08]} 74. a6 {[%clk 0:00:54]}  Ke7 {[%clk 0:00:09]} 75. Qc6 {[%clk 0:00:54]}  Kd8 {[%clk 0:00:06]} 76. Qb7 {[%clk 0:00:54]} 1-0


[Site "https://www.chess.com"]

[Event "Titled Tuesday Blitz April 4 Late 2023"]
[White "KorolDimitriy75"]
[Black "Munoz, Francisco Javier"]
[BlackFideId "128368"]
[WhiteElo "2413"]
[BlackElo "2383"]
[Result "0-1"]
[Round "04"]
[TimeControl "180+2"]
[Date "2023.04.04"]
[WhiteClock "0:00:51"]
[BlackClock "0:02:34"]

1. d4 {[%clk 0:03:00]}  d5 {[%clk 0:03:00]} 2. c4 {[%clk 0:03:00]}  e6 {[%clk 0:03:00]} 3. Nc3 {[%clk 0:03:00]}  Nf6 {[%clk 0:02:59]} 4. Bg5 {[%clk 0:03:00]}  Nbd7 {[%clk 0:03:00]} 5. cxd5 {[%clk 0:03:00]}  exd5 {[%clk 0:03:01]} 6. e3 {[%clk 0:03:01]}  c6 {[%clk 0:03:00]} 7. Bd3 {[%clk 0:03:01]}  h6 {[%clk 0:03:01]} 8. Bh4 {[%clk 0:03:01]}  Be7 {[%clk 0:03:01]} 9. Qc2 {[%clk 0:03:01]}  Nh5 {[%clk 0:03:02]} 10. Bxe7 {[%clk 0:02:58]}  Qxe7 {[%clk 0:03:03]} 11. Nge2 {[%clk 0:02:56]}  Nb6 {[%clk 0:03:03]} 12. O-O {[%clk 0:02:55]}  Nf6 {[%clk 0:03:00]} 13. Rae1 {[%clk 0:02:50]}  O-O {[%clk 0:02:59]} 14. Ng3 {[%clk 0:02:46]}  Be6 {[%clk 0:02:59]} 15. f3 {[%clk 0:02:43]}  c5 {[%clk 0:02:58]} 16. Qf2 {[%clk 0:02:06]}  Rac8 {[%clk 0:02:46]} 17. Nf5 {[%clk 0:01:53]}  Bxf5 {[%clk 0:02:36]} 18. Bxf5 {[%clk 0:01:52]}  Rcd8 {[%clk 0:02:36]} 19. dxc5 {[%clk 0:01:13]}  Qxc5 {[%clk 0:02:35]} 20. Rd1 {[%clk 0:00:51]}  d4 {[%clk 0:02:34]} 0-1


[Site "https://www.chess.com"]

[Event "Titled Tuesday Blitz April 4 Late 2023"]
[White "Gerbelli Neto, Eduardo"]
[Black "Janaszak, Dawid"]
[WhiteFideId "2103281"]
[BlackFideId "1119206"]
[WhiteElo "2178"]
[BlackElo "2220"]
[Result "1-0"]
[Round "04"]
[TimeControl "180+2"]
[Date "2023.04.04"]
[WhiteClock "0:01:38"]
[BlackClock "0:01:03"]

1. e4 {[%clk 0:03:00]}  c5 {[%clk 0:02:59]} 2. Nc3 {[%clk 0:03:00]}  Nc6 {[%clk 0:02:59]} 3. f4 {[%clk 0:03:01]}  g6 {[%clk 0:02:57]} 4. Nf3 {[%clk 0:03:02]}  Bg7 {[%clk 0:02:57]} 5. Bc4 {[%clk 0:03:01]}  e6 {[%clk 0:02:58]} 6. f5 {[%clk 0:03:01]}  Nge7 {[%clk 0:02:58]} 7. fxe6 {[%clk 0:03:02]}  fxe6 {[%clk 0:02:59]} 8. d3 {[%clk 0:03:03]}  O-O {[%clk 0:02:55]} 9. O-O {[%clk 0:03:03]}  h6 {[%clk 0:02:54]} 10. Bb3 {[%clk 0:03:02]}  Na5 {[%clk 0:02:50]} 11. Qe1 {[%clk 0:02:57]}  Nxb3 {[%clk 0:02:50]} 12. axb3 {[%clk 0:02:58]}  g5 {[%clk 0:02:50]} 13. Qg3 {[%clk 0:02:48]}  b6 {[%clk 0:02:47]} 14. h4 {[%clk 0:02:47]}  Ng6 {[%clk 0:02:41]} 15. hxg5 {[%clk 0:02:46]}  h5 {[%clk 0:02:42]} 16. Bd2 {[%clk 0:02:29]}  Bb7 {[%clk 0:02:41]} 17. Nh4 {[%clk 0:02:29]}  Be5 {[%clk 0:02:32]} 18. Qh3 {[%clk 0:02:25]}  Kg7 {[%clk 0:02:18]} 19. Rxf8 {[%clk 0:02:15]}  Qxf8 {[%clk 0:02:17]} 20. Rf1 {[%clk 0:02:14]}  Qd6 {[%clk 0:02:18]} 21. Nxg6 {[%clk 0:02:08]}  Kxg6 {[%clk 0:02:17]} 22. Qf3 {[%clk 0:02:06]}  Qe7 {[%clk 0:02:09]} 23. Ne2 {[%clk 0:02:04]}  d5 {[%clk 0:01:49]} 24. Nf4+ {[%clk 0:01:48]}  Bxf4 {[%clk 0:01:49]} 25. Qxf4 {[%clk 0:01:49]}  dxe4 {[%clk 0:01:45]} 26. dxe4 {[%clk 0:01:50]}  Rd8 {[%clk 0:01:30]} 27. Bc3 {[%clk 0:01:50]}  b5 {[%clk 0:01:09]} 28. Bf6 {[%clk 0:01:50]}  Qd7 {[%clk 0:01:03]} 29. Bxd8 {[%clk 0:01:49]}  Qxd8 {[%clk 0:01:03]} 30. Qf7+ {[%clk 0:01:42]}  Kxg5 {[%clk 0:01:03]} 31. Qg7+ {[%clk 0:01:39]}  Kh4 {[%clk 0:01:03]} 32. Rf4# {[%clk 0:01:38]} 1-0


[Site "https://www.chess.com"]

[Event "Titled Tuesday Blitz April 4 Late 2023"]
[White "Fiorito, Francisco"]
[Black "Senft, Sean"]
[WhiteFideId "180165"]
[BlackFideId "2044960"]
[WhiteElo "2341"]
[BlackElo "1989"]
[Result "1-0"]
[Round "04"]
[TimeControl "180+2"]
[Date "2023.04.04"]
[WhiteClock "0:00:34"]
[BlackClock "0:00:12"]

1. d4 {[%clk 0:03:00]}  d5 {[%clk 0:02:59]} 2. Bf4 {[%clk 0:03:00]}  Nf6 {[%clk 0:03:00]} 3. e3 {[%clk 0:03:00]}  e6 {[%clk 0:02:59]} 4. Nf3 {[%clk 0:02:57]}  Bd6 {[%clk 0:03:00]} 5. Bg3 {[%clk 0:02:57]}  O-O {[%clk 0:03:00]} 6. c3 {[%clk 0:02:58]}  b6 {[%clk 0:03:00]} 7. Bd3 {[%clk 0:02:55]}  Bb7 {[%clk 0:03:01]} 8. Nbd2 {[%clk 0:02:56]}  Ne4 {[%clk 0:03:01]} 9. Qc2 {[%clk 0:02:51]}  f5 {[%clk 0:02:57]} 10. Bxe4 {[%clk 0:02:39]}  fxe4 {[%clk 0:02:57]} 11. Ne5 {[%clk 0:02:40]}  Bxe5 {[%clk 0:02:42]} 12. Bxe5 {[%clk 0:02:39]}  Nd7 {[%clk 0:02:39]} 13. Bg3 {[%clk 0:02:39]}  Ba6 {[%clk 0:02:23]} 14. c4 {[%clk 0:02:37]}  c5 {[%clk 0:02:23]} 15. dxc5 {[%clk 0:02:31]}  Nxc5 {[%clk 0:02:21]} 16. O-O {[%clk 0:02:31]}  Rc8 {[%clk 0:02:15]} 17. Rad1 {[%clk 0:02:28]}  Nd3 {[%clk 0:02:04]} 18. b3 {[%clk 0:02:28]}  h5 {[%clk 0:01:58]} 19. h4 {[%clk 0:02:24]}  b5 {[%clk 0:01:29]} 20. Qc3 {[%clk 0:02:14]}  bxc4 {[%clk 0:01:19]} 21. bxc4 {[%clk 0:02:14]}  Bxc4 {[%clk 0:01:16]} 22. Nxc4 {[%clk 0:02:11]}  Rxc4 {[%clk 0:01:16]} 23. Qa3 {[%clk 0:02:11]}  Rc2 {[%clk 0:00:45]} 24. Qxa7 {[%clk 0:01:46]}  Qf6 {[%clk 0:00:44]} 25. Qa4 {[%clk 0:01:45]}  Qb2 {[%clk 0:00:37]} 26. Rb1 {[%clk 0:01:05]}  Qxa2 {[%clk 0:00:37]} 27. Qd7 {[%clk 0:01:05]}  Rcxf2 {[%clk 0:00:15]} 28. Qxe6+ {[%clk 0:01:02]}  Kh8 {[%clk 0:00:15]} 29. Bxf2 {[%clk 0:00:58]}  Rxf2 {[%clk 0:00:15]} 30. Rb8+ {[%clk 0:00:48]}  Kh7 {[%clk 0:00:14]} 31. Qg8+ {[%clk 0:00:49]}  Kg6 {[%clk 0:00:15]} 32. Rb6+ {[%clk 0:00:49]}  Kf5 {[%clk 0:00:12]} 33. Qf7+ {[%clk 0:00:49]}  Kg4 {[%clk 0:00:13]} 34. Rxf2 {[%clk 0:00:44]}  Nxf2 {[%clk 0:00:12]} 35. Rg6+ {[%clk 0:00:43]}  Kxh4 {[%clk 0:00:12]} 36. Qxf2+ {[%clk 0:00:34]} 1-0


[Site "https://www.chess.com"]

[Event "Titled Tuesday Blitz April 4 Late 2023"]
[White "Qiao, Cindy"]
[Black "TimGrutter03"]
[WhiteFideId "2620243"]
[WhiteElo "1777"]
[BlackElo "2568"]
[Result "0-1"]
[Round "04"]
[TimeControl "180+2"]
[Date "2023.04.04"]
[WhiteClock "0:00:16"]
[BlackClock "0:00:10"]

1. d4 {[%clk 0:03:00]}  g6 {[%clk 0:02:58]} 2. Bf4 {[%clk 0:03:00]}  Bg7 {[%clk 0:02:56]} 3. Nc3 {[%clk 0:03:00]}  d6 {[%clk 0:02:55]} 4. e4 {[%clk 0:03:00]}  Nc6 {[%clk 0:02:55]} 5. Nf3 {[%clk 0:02:59]}  Bg4 {[%clk 0:02:55]} 6. Be3 {[%clk 0:02:59]}  e5 {[%clk 0:02:54]} 7. d5 {[%clk 0:02:58]}  Nd4 {[%clk 0:02:54]} 8. Be2 {[%clk 0:02:59]}  Bxf3 {[%clk 0:02:54]} 9. Bxf3 {[%clk 0:03:00]}  Ne7 {[%clk 0:02:54]} 10. Bg4 {[%clk 0:02:55]}  f5 {[%clk 0:02:53]} 11. exf5 {[%clk 0:02:51]}  Nexf5 {[%clk 0:02:54]} 12. Bxd4 {[%clk 0:02:36]}  Nxd4 {[%clk 0:02:51]} 13. O-O {[%clk 0:02:36]}  O-O {[%clk 0:02:47]} 14. Ne2 {[%clk 0:02:27]}  Nf5 {[%clk 0:02:46]} 15. Ng3 {[%clk 0:02:22]}  Qh4 {[%clk 0:02:36]} 16. Bf3 {[%clk 0:02:05]}  Nd4 {[%clk 0:02:22]} 17. Bg4 {[%clk 0:02:00]}  Rf4 {[%clk 0:02:11]} 18. Bh3 {[%clk 0:01:52]}  Raf8 {[%clk 0:02:07]} 19. c3 {[%clk 0:01:51]}  Nf5 {[%clk 0:02:03]} 20. Qb3 {[%clk 0:01:49]}  b6 {[%clk 0:01:50]} 21. Qb5 {[%clk 0:01:47]}  Qe7 {[%clk 0:01:40]} 22. Qa6 {[%clk 0:01:40]}  Bh6 {[%clk 0:01:36]} 23. Rae1 {[%clk 0:01:32]}  Qf7 {[%clk 0:01:20]} 24. Nxf5 {[%clk 0:01:26]}  gxf5 {[%clk 0:01:21]} 25. g3 {[%clk 0:01:27]}  Qg7 {[%clk 0:01:04]} 26. Bg2 {[%clk 0:01:26]}  Rg4 {[%clk 0:01:02]} 27. h3 {[%clk 0:01:19]}  Rg6 {[%clk 0:00:59]} 28. Qd3 {[%clk 0:01:10]}  e4 {[%clk 0:00:52]} 29. Qd4 {[%clk 0:01:08]}  Qxd4 {[%clk 0:00:42]} 30. cxd4 {[%clk 0:01:09]}  e3 {[%clk 0:00:42]} 31. Kh2 {[%clk 0:01:04]}  exf2 {[%clk 0:00:35]} 32. Rxf2 {[%clk 0:01:05]}  Bg7 {[%clk 0:00:35]} 33. Re7 {[%clk 0:00:58]}  Bxd4 {[%clk 0:00:32]} 34. Rd2 {[%clk 0:00:46]}  Be5 {[%clk 0:00:32]} 35. Rd3 {[%clk 0:00:46]}  Rf7 {[%clk 0:00:31]} 36. Re8+ {[%clk 0:00:45]}  Rf8 {[%clk 0:00:29]} 37. Re7 {[%clk 0:00:45]}  Rg7 {[%clk 0:00:29]} 38. Re6 {[%clk 0:00:44]}  f4 {[%clk 0:00:28]} 39. gxf4 {[%clk 0:00:37]}  Rxf4 {[%clk 0:00:29]} 40. Kg1 {[%clk 0:00:30]}  Bd4+ {[%clk 0:00:26]} 41. Kh1 {[%clk 0:00:28]}  Bxb2 {[%clk 0:00:17]} 42. Re2 {[%clk 0:00:24]}  Be5 {[%clk 0:00:17]} 43. Bf3 {[%clk 0:00:18]}  Rg3 {[%clk 0:00:14]} 44. Rf2 {[%clk 0:00:15]}  Rxh3+ {[%clk 0:00:11]} 45. Kg2 {[%clk 0:00:16]}  Rh6 {[%clk 0:00:11]} 46. Kf1 {[%clk 0:00:15]}  Rhf6 {[%clk 0:00:10]} 47. Ke2 {[%clk 0:00:15]}  Kf8 {[%clk 0:00:11]} 48. Rg2 {[%clk 0:00:16]}  Ke7 {[%clk 0:00:10]} 49. Bg4 {[%clk 0:00:16]}  Rg6 {[%clk 0:00:10]} 50. Rdg3 {[%clk 0:00:15]}  Re4+ {[%clk 0:00:09]} 51. Re3 {[%clk 0:00:15]}  Rexg4 {[%clk 0:00:09]} 52. Rf2 {[%clk 0:00:15]}  Rg2 {[%clk 0:00:09]} 53. Rxg2 {[%clk 0:00:15]}  Rxg2+ {[%clk 0:00:09]} 54. Kd3 {[%clk 0:00:16]}  Rg3 {[%clk 0:00:10]} 0-1


[Site "https://www.chess.com"]

[Event "Titled Tuesday Blitz April 4 Late 2023"]
[White "Li, Hui"]
[Black "Fiorito, Joaquin"]
[WhiteFideId "15400310"]
[BlackFideId "180173"]
[WhiteElo "1967"]
[BlackElo "2157"]
[Result "0-1"]
[Round "04"]
[TimeControl "180+2"]
[Date "2023.04.04"]
[WhiteClock "0:00:01"]
[BlackClock "0:00:19"]

1. e4 {[%clk 0:03:00]}  c6 {[%clk 0:03:00]} 2. d4 {[%clk 0:03:00]}  d5 {[%clk 0:03:00]} 3. Nd2 {[%clk 0:03:01]}  dxe4 {[%clk 0:03:00]} 4. Nxe4 {[%clk 0:03:02]}  Nf6 {[%clk 0:03:01]} 5. Nxf6+ {[%clk 0:03:02]}  exf6 {[%clk 0:03:02]} 6. c3 {[%clk 0:03:03]}  Bd6 {[%clk 0:03:02]} 7. Bd3 {[%clk 0:03:03]}  O-O {[%clk 0:03:03]} 8. Qc2 {[%clk 0:03:04]}  Re8+ {[%clk 0:03:03]} 9. Ne2 {[%clk 0:03:04]}  h5 {[%clk 0:03:04]} 10. O-O {[%clk 0:03:05]}  h4 {[%clk 0:03:05]} 11. Bf4 {[%clk 0:03:05]}  h3 {[%clk 0:02:57]} 12. g3 {[%clk 0:03:02]}  Na6 {[%clk 0:02:39]} 13. Rae1 {[%clk 0:03:00]}  Nc7 {[%clk 0:02:36]} 14. Bxd6 {[%clk 0:02:31]}  Qxd6 {[%clk 0:02:36]} 15. Nf4 {[%clk 0:02:31]}  Be6 {[%clk 0:02:07]} 16. Nxe6 {[%clk 0:02:29]}  Nxe6 {[%clk 0:02:08]} 17. Bf5 {[%clk 0:01:58]}  Qd5 {[%clk 0:01:13]} 18. Bxh3 {[%clk 0:01:51]}  Qxa2 {[%clk 0:01:07]} 19. Bxe6 {[%clk 0:01:28]}  Rxe6 {[%clk 0:01:06]} 20. Rxe6 {[%clk 0:01:28]}  Qxe6 {[%clk 0:01:06]} 21. Rd1 {[%clk 0:01:11]}  Re8 {[%clk 0:01:03]} 22. Qd3 {[%clk 0:01:06]}  Qe2 {[%clk 0:00:57]} 23. Rd2 {[%clk 0:00:57]}  Qxd3 {[%clk 0:00:50]} 24. Rxd3 {[%clk 0:00:58]}  Re2 {[%clk 0:00:50]} 25. b3 {[%clk 0:00:53]}  Kf8 {[%clk 0:00:45]} 26. d5 {[%clk 0:00:44]}  c5 {[%clk 0:00:44]} 27. c4 {[%clk 0:00:34]}  Ke7 {[%clk 0:00:44]} 28. Kf1 {[%clk 0:00:33]}  Rb2 {[%clk 0:00:42]} 29. h4 {[%clk 0:00:33]}  Kd6 {[%clk 0:00:38]} 30. Kg2 {[%clk 0:00:32]}  a6 {[%clk 0:00:38]} 31. h5 {[%clk 0:00:22]}  b5 {[%clk 0:00:36]} 32. Rf3 {[%clk 0:00:18]}  bxc4 {[%clk 0:00:21]} 33. bxc4 {[%clk 0:00:19]}  Rb4 {[%clk 0:00:22]} 34. h6 {[%clk 0:00:18]}  gxh6 {[%clk 0:00:22]} 35. Rxf6+ {[%clk 0:00:18]}  Ke5 {[%clk 0:00:23]} 36. Rxa6 {[%clk 0:00:14]}  Rxc4 {[%clk 0:00:23]} 37. Rxh6 {[%clk 0:00:14]}  Kxd5 {[%clk 0:00:24]} 38. Rf6 {[%clk 0:00:14]}  Rc2 {[%clk 0:00:21]} 39. Rxf7 {[%clk 0:00:14]}  c4 {[%clk 0:00:22]} 40. Rd7+ {[%clk 0:00:13]}  Kc6 {[%clk 0:00:20]} 41. Rd8 {[%clk 0:00:13]}  Kc7 {[%clk 0:00:21]} 42. Rd5 {[%clk 0:00:12]}  Kc6 {[%clk 0:00:21]} 43. Rd8 {[%clk 0:00:12]}  Kc7 {[%clk 0:00:22]} 44. Rd4 {[%clk 0:00:12]}  Kc6 {[%clk 0:00:20]} 45. g4 {[%clk 0:00:09]}  Kc5 {[%clk 0:00:21]} 46. Rd8 {[%clk 0:00:09]}  Re2 {[%clk 0:00:21]} 47. Rc8+ {[%clk 0:00:08]}  Kb4 {[%clk 0:00:21]} 48. Kg3 {[%clk 0:00:07]}  c3 {[%clk 0:00:21]} 49. f4 {[%clk 0:00:05]}  c2 {[%clk 0:00:20]} 50. Kh4 {[%clk 0:00:03]}  Kb3 {[%clk 0:00:18]} 51. Kg5 {[%clk 0:00:01]}  Re3 {[%clk 0:00:19]} 0-1


[Site "https://www.chess.com"]

[Event "Titled Tuesday Blitz April 4 Late 2023"]
[White "Gutkin, Ilya"]
[Black "Korkmaz, Necmettin"]
[WhiteFideId "16203470"]
[BlackFideId "6303285"]
[WhiteElo "2265"]
[BlackElo "2097"]
[Result "1/2-1/2"]
[Round "04"]
[TimeControl "180+2"]
[Date "2023.04.04"]
[WhiteClock "0:00:04"]
[BlackClock "0:00:24"]

1. Nf3 {[%clk 0:03:00]}  d5 {[%clk 0:02:56]} 2. g3 {[%clk 0:03:00]}  g6 {[%clk 0:02:55]} 3. Bg2 {[%clk 0:03:00]}  Bg7 {[%clk 0:02:55]} 4. c4 {[%clk 0:03:00]}  dxc4 {[%clk 0:02:51]} 5. Na3 {[%clk 0:02:54]}  Nc6 {[%clk 0:02:44]} 6. Nxc4 {[%clk 0:02:53]}  e5 {[%clk 0:02:43]} 7. O-O {[%clk 0:02:53]}  Nge7 {[%clk 0:02:41]} 8. Rb1 {[%clk 0:02:53]}  O-O {[%clk 0:02:39]} 9. d3 {[%clk 0:02:50]}  Be6 {[%clk 0:02:36]} 10. b3 {[%clk 0:02:43]}  Nd5 {[%clk 0:02:33]} 11. Bb2 {[%clk 0:02:42]}  f6 {[%clk 0:02:32]} 12. e4 {[%clk 0:02:34]}  Ndb4 {[%clk 0:02:29]} 13. d4 {[%clk 0:02:34]}  exd4 {[%clk 0:02:25]} 14. Nxd4 {[%clk 0:02:34]}  Nxd4 {[%clk 0:02:25]} 15. Bxd4 {[%clk 0:02:33]}  Nxa2 {[%clk 0:02:17]} 16. Qd2 {[%clk 0:02:28]}  Bxc4 {[%clk 0:02:05]} 17. bxc4 {[%clk 0:02:28]}  c5 {[%clk 0:02:05]} 18. Be3 {[%clk 0:02:28]}  Qxd2 {[%clk 0:02:04]} 19. Bxd2 {[%clk 0:02:29]}  Nb4 {[%clk 0:01:51]} 20. Bxb4 {[%clk 0:02:26]}  cxb4 {[%clk 0:01:52]} 21. Rxb4 {[%clk 0:02:27]}  b6 {[%clk 0:01:52]} 22. e5 {[%clk 0:02:25]}  Rac8 {[%clk 0:01:52]} 23. Bd5+ {[%clk 0:02:25]}  Kh8 {[%clk 0:01:52]} 24. Ra1 {[%clk 0:02:16]}  Rc7 {[%clk 0:01:49]} 25. Rba4 {[%clk 0:02:07]}  a5 {[%clk 0:01:48]} 26. Rb1 {[%clk 0:01:56]}  fxe5 {[%clk 0:01:38]} 27. Rxb6 {[%clk 0:01:57]}  e4 {[%clk 0:01:38]} 28. Ra6 {[%clk 0:01:09]}  Bd4 {[%clk 0:01:35]} 29. Ra2 {[%clk 0:01:09]}  e3 {[%clk 0:01:32]} 30. fxe3 {[%clk 0:01:08]}  Bxe3+ {[%clk 0:01:33]} 31. Kg2 {[%clk 0:01:08]}  Rc5 {[%clk 0:01:29]} 32. R6xa5 {[%clk 0:01:05]}  Rxa5 {[%clk 0:01:29]} 33. Rxa5 {[%clk 0:01:05]}  Rc8 {[%clk 0:01:29]} 34. Rb5 {[%clk 0:00:58]}  Rc7 {[%clk 0:01:29]} 35. Kf3 {[%clk 0:00:53]}  Bg1 {[%clk 0:01:28]} 36. h4 {[%clk 0:00:53]}  Kg7 {[%clk 0:01:29]} 37. g4 {[%clk 0:00:53]}  Kf6 {[%clk 0:01:28]} 38. g5+ {[%clk 0:00:23]}  Ke5 {[%clk 0:01:00]} 39. Rb7 {[%clk 0:00:20]}  Rxb7 {[%clk 0:00:57]} 40. Bxb7 {[%clk 0:00:21]}  Bc5 {[%clk 0:00:46]} 41. Bd5 {[%clk 0:00:21]}  Bf8 {[%clk 0:00:38]} 42. Kg4 {[%clk 0:00:17]}  h5+ {[%clk 0:00:36]} 43. Kf3 {[%clk 0:00:11]}  Bb4 {[%clk 0:00:24]} 44. Be4 {[%clk 0:00:04]}  Be1 {[%clk 0:00:24]} 45. Bxg6 {[%clk 0:00:04]}  Bxh4 {[%clk 0:00:24]} 46. Bxh5 {[%clk 0:00:05]}  Bxg5 {[%clk 0:00:24]} 47. c5 {[%clk 0:00:04]} 1/2-1/2


[Site "https://www.chess.com"]